Cogmind - Beta 11 X10 @@@ ROGUE MODE // 2022.02.12 @ 03:51:28 Player: gammafunk Result: Self-destructed Performance ------------- Evolutions (3) 1500 Regions Visited (6) 1200 Robots Destroyed (149) 745 Value Destroyed (3859) 3859 Prototype IDs (7) 140 Alien Tech Used (0) 0 Bonus (319) 319 TOTAL SCORE: 7763 Bonus ------- High Alert Combat Kills 216 Follower Combat Kills 103 Cogmind --------- Core Integrity 649/700 Matter 232/300 Energy 265/265 System Corruption 3% Temperature Cool (0) Movement Treading (245) Ox1 Location -7/Factory Parts ------- > --- POWER (1) -------- Reinforced Ion Engine > --- PROPULSION (5) --- Armored Treads Armored Treads Armored Treads Armored Treads Advanced Treads > --- UTILITY (3) ------ Huge Storage Unit Improved Sensor Array Improved Signal Interpreter > --- WEAPON (4) ------- Enhanced Autogun Enhanced Autogun Gauss Rifle Flak Gun > --- INVENTORY (25) --- Armored Treads Advanced Treads Advanced Treads Improved Heat Sink Cooling System High-capacity Matter Pod (40) Improved Sensor Array Improved Sensor Array Improved Signal Interpreter Advanced Terrain Scan Processor Transport Network Coupler Medium Armor Plating Improved Light Armor Plating Improved Light Armor Plating Improved Light Armor Plating System Shield System Restoration Module Splice Drone Bay (6/6) Improved Assault Rifle High-powered Shotgun Gauss Rifle Rocket Launcher Mini Grenade Launcher Plasma Cutter Powered Hammer Peak State ------------ > --- POWER ------------ Cooled Ion Engine > --- PROPULSION ------- Armored Treads Armored Treads Advanced Treads Advanced Treads Advanced Treads > --- UTILITY ---------- Huge Storage Unit Improved Signal Interpreter Improved Light Armor Plating > --- WEAPON ----------- Enhanced Autogun Enhanced Autogun Gauss Rifle Flak Gun > --- INVENTORY -------- Reinforced Ion Engine Armored Treads Armored Treads Improved Heat Sink Cooling System High-capacity Matter Pod Improved Sensor Array Improved Sensor Array Improved Sensor Array Improved Signal Interpreter Advanced Terrain Scan Processor Transport Network Coupler Medium Armor Plating Medium Armor Plating Splice Drone Bay Improved Assault Rifle High-powered Shotgun Gauss Rifle Rocket Launcher Mini Grenade Launcher Plasma Cutter Powered Hammer [Rating: 47] Favorites ----------- Power Heavy Ion Engine Engine Heavy Ion Engine Propulsion Light Treads Treads Light Treads Utility High-capacity Storage Unit Device Improved Heat Sink Storage High-capacity Storage Unit Processor Improved Signal Interpreter Protection Light Armor Plating Weapon Heavy Assault Rifle Energy Gun Medium Laser Ballistic Gun Heavy Assault Rifle Launcher Mini Grenade Launcher Special Weapon Mining Laser Impact Weapon Heavy Hammer Build | -11 -10 -10 -9 -9 -8 -7 ------- Run | Scr Mat Min Mat Min Mat Fac Slots Evolved 6 | . . . 2 . 2 2 Power . | . . . . . . . Propulsion 3 | . . . 1 . 1 1 Utility 1 | . . . . . 1 . Weapon 2 | . . . 1 . . 1 Parts Attached 134 | 7 17 14 41 4 25 26 Power 10 | 1 3 2 2 . 1 1 Engine 10 | 1 3 2 2 . 1 1 Core . | . . . . . . . Reactor . | . . . . . . . Propulsion 31 | 2 5 2 14 2 2 4 Treads 31 | 2 5 2 14 2 2 4 Leg . | . . . . . . . Wheel . | . . . . . . . Hover . | . . . . . . . Flight . | . . . . . . . Utility 38 | 2 5 3 6 1 5 16 Device 12 | 1 1 3 . . 1 6 Storage 6 | 1 2 . 1 . 1 1 Processor 1 | . . . . . . 1 Hackware . | . . . . . . . Protection 19 | . 2 . 5 1 3 8 Artifact . | . . . . . . . Weapon 55 | 2 4 7 19 1 17 5 Energy Gun 6 | 2 2 2 . . . . Energy Cannon . | . . . . . . . Ballistic Gun 41 | . 2 5 17 1 12 4 Ballistic Cannon . | . . . . . . . Launcher 3 | . . . 1 . 1 1 Special Weapon 1 | . . . 1 . . . Impact Weapon 4 | . . . . . 4 . Slashing Weapon . | . . . . . . . Piercing Weapon . | . . . . . . . Special Melee Weapon . | . . . . . . . Unidentified Prototypes 5 | . . 1 2 . 2 . Parts Lost 9 | . 1 4 2 . . 2 Power 3 | . . 2 . . . 1 Propulsion . | . . . . . . . Utility 2 | . . 1 . . . 1 Weapon 4 | . 1 1 2 . . . Highest Loss Streak 2 | . 1 2 1 . . 2 To Critical Strikes 2 | . . 2 . . . . Average Slot Usage (%) 99 | . 99 96 99 100 99 99 Engine 10 | . 14 12 11 11 9 6 Treads 32 | . 28 28 33 33 36 38 Device 5 | . 4 8 2 . 9 4 Storage 11 | . 14 14 11 11 9 7 Protection 7 | . 9 3 8 11 9 2 Energy Gun 4 | . 19 4 . . . . Ballistic Gun 24 | . 8 23 32 33 26 26 Naked Turns . | . . . . . . . Heaviest Build 111 | 13 31 31 60 64 65 111 Greatest Support 106 | 40 40 40 66 64 84 106 Greatest Overweight (x) 1 | . 1 . . 1 . 1 Average Overweight (x) . | . . . . . . . Largest Inventory Capacity 25 | 8 15 15 20 20 20 25 Average Capacity 17 | 7 10 15 19 20 20 22 Most Carried 25 | 5 12 15 20 20 20 25 Average Carried 16 | 3 8 14 18 19 19 20 Final Capacity 25 | 8 15 15 20 20 20 25 Final Carried 25 | 5 12 14 20 20 20 25 Class Distribution -------------------- 39% | Tank 26% | Mutant 16% | Scavenger-Mutant 10% | Scavenger-Tank 3% | Scavenger-Gunner Dominant Class ---------------- Mutant | -10/Materials Scavenger-Mutant | -10/Mines Tank | -9/Materials Tank | -9/Mines Tank | -8/Materials Mutant | -7/Factory Resources | -11 -10 -10 -9 -9 -8 -7 ----------- Run | Scr Mat Min Mat Min Mat Fac Matter Collected 4152 | 266 162 226 1508 159 964 867 Remotely . | . . . . . . . Salvage Created 5531 | 51 625 454 2037 212 1459 693 Parts 345 | 6 36 32 133 18 94 26 Haulers Intercepted 10 | . 2 . 3 . 5 . Recyclers Shooed 12 | 1 4 2 1 . 3 1 Parts Field Recycled . | . . . . . . . Retrieved Matter . | . . . . . . . Parts Self-Destructed . | . . . . . . . Prevented . | . . . . . . . Kills | -11 -10 -10 -9 -9 -8 -7 ------- Run | Scr Mat Min Mat Min Mat Fac Combat Hostiles Destroyed 108 | . 11 15 39 7 24 12 Guns 101 | . 11 15 32 7 24 12 AOE 7 | . . . 7 . . . Classes Destroyed 15 | 1 6 . 5 . 2 1 Worker 7 | . 2 . 5 . . . Builder 2 | . . . 1 1 . . Tunneler 2 | 2 . . . . . . Hauler 10 | . 2 . 3 . 5 . Recycler 8 | . 2 2 1 . 2 1 Operator 1 | . . . . . 1 . Watcher 11 | . 2 . 4 . 4 1 Swarmer 36 | . 6 11 7 4 8 . Grunt 42 | . 5 4 17 3 10 3 Brawler 5 | . . . 2 . . 3 Duelist 3 | . . . 2 . . 1 Protector 1 | . . . 1 . . . Sentry 17 | . . . 10 . 4 3 Hunter 3 | . . . . . 2 1 Programmer 1 | . . . . . . 1 Best Kill Streak 7 | 1 4 3 6 3 7 5 Combat Bots Only 7 | . 3 3 5 3 7 5 Max Kills in Single Turn 4 | 1 1 1 4 1 2 1 Gunslinging 1 | . . . . . 1 . Exploded 4 | . . . 4 . . . Melee . | . . . . . . . Uniques/NPCs Destroyed . | . . . . . . . Combat | -11 -10 -10 -9 -9 -8 -7 -------- Run | Scr Mat Min Mat Min Mat Fac Damage Taken 4678 | . 499 770 1217 230 789 1173 Core 368 | . 41 95 110 10 61 51 Absorbed by Shields . | . . . . . . . Regen/Repaired (Parts) 174 | . 116 . . . 58 . Core Remaining (%) 75 | 100 . 45 . 70 88 . Volleys Fired 353 | 7 65 60 100 11 70 40 Largest 4 | 2 2 2 3 3 3 4 Hottest 106 | 100 100 70 100 69 74 106 Shots Fired 941 | 14 123 118 288 33 208 157 Gun 933 | 14 123 118 282 33 207 156 Cannon . | . . . . . . . Launcher 7 | . . . 5 . 1 1 Special 1 | . . . 1 . . . Kinetic 782 | . 18 86 282 33 207 156 Thermal 152 | 14 105 32 1 . . . Explosive 7 | . . . 5 . 1 1 Electromagnetic . | . . . . . . . Robot Hit Streak 23 | 3 10 11 23 4 10 14 Robot Miss Streak 7 | 2 3 3 7 5 4 4 Penetration Max 1 | . . . . . . 1 Secondary Targets 10 | . . 3 4 1 2 . Max Gunslinging Chain 1 | . . 1 1 1 1 . Shots Hit Robots 591 | 7 83 83 177 15 116 110 Core Hits 281 | 3 33 35 82 9 63 56 Critical Kills 3 | . . 1 1 . . 1 Critical Parts Destroyed 3 | . . . 2 . 1 . Critical Strikes 14 | 1 7 1 3 . 1 1 Burn 8 | 1 7 . . . . . Destroy 6 | . . 1 3 . 1 1 Melee Attacks 6 | . . . . . 6 . Impact 6 | . . . . . 6 . Slashing . | . . . . . . . Piercing . | . . . . . . . Sneak Attacks . | . . . . . . . Combat Hostiles . | . . . . . . . Follow-up Attacks . | . . . . . . . Damage Inflicted 9444 | 101 995 778 3315 290 2034 1931 Guns 8757 | 99 948 736 2908 242 1936 1888 Cannons . | . . . . . . . Explosions 333 | . . . 333 . . . Melee . | . . . . . . . Ramming 354 | 2 47 42 74 48 98 43 Kinetic 7569 | . 105 490 2908 242 1936 1888 Thermal 1188 | 99 843 246 . . . . Explosive . | . . . . . . . Electromagnetic 333 | . . . 333 . . . Impact . | . . . . . . . Slashing . | . . . . . . . Piercing . | . . . . . . . Highest Corruption 3 | . . . 1 1 2 3 Average Corruption 1 | . . . 1 1 1 2 Corruption Purged . | . . . . . . . Corruption Blocked . | . . . . . . . Effects 22 | . . . 3 4 8 7 Message Errors 5 | . . . . 1 1 3 Matter Fused 4 | . . . 1 1 2 . Heat Flow Errors 6 | . . . 1 1 2 2 Energy Discharges 1 | . . . . . . 1 Data Loss (minor) 4 | . . . . 1 2 1 Data Loss (major) 2 | . . . 1 . 1 . Overload Shots . | . . . . . . . Overflow Damage 2 | . . . . . 2 . Projectiles . | . . . . . . . Explosions . | . . . . . . . Melee 2 | . . . . . 2 . Knockbacks 3 | . 1 . . . 2 . Impact 3 | . 1 . . . 2 . Kinetic . | . . . . . . . Secondary . | . . . . . . . Self-Inflicted Damage 17 | . . . 17 . . . Shots 1 | . . . 1 . . . Rammed 50 | 1 10 8 7 8 13 3 Targets Rammed 54 | 1 10 9 8 8 14 4 Kicked . | . . . . . . . Crushed 4 | . . 1 1 . 1 1 Highest Temperature 370 | 117 370 310 260 255 261 328 Average Temperature 88 | 54 107 83 65 72 88 115 Received Heat Transfer 1371 | . 183 249 387 75 207 270 Effects 8 | . 4 2 . . . 2 Shutdowns 2 | . 2 . . . . . Energy Bleed 1 | . . . . . . 1 Interference 5 | . 2 2 . . . 1 Siege Activations . | . . . . . . . Robots Corrupted . | . . . . . . . Combat Hostiles . | . . . . . . . Parts Fried 1 | . . . 1 . . . Impact Corruptions 1 | . . . . . 1 . Robots Melted . | . . . . . . . Combat Hostiles . | . . . . . . . Parts Melted 6 | . 6 . . . . . Heat Transferred 3965 | 370 2998 597 . . . . Parts Sabotaged . | . . . . . . . Parts Stolen . | . . . . . . . Parts Stripped . | . . . . . . . Power Chain Reactions . | . . . . . . . Missiles Intercepted . | . . . . . . . Alert | -11 -10 -10 -9 -9 -8 -7 ------- Run | Scr Mat Min Mat Min Mat Fac Peak Influence 749 | 10 298 205 749 396 341 229 Initial 291 | . 6 5 21 291 44 16 Average 176 | 3 71 55 385 283 118 99 Maximum Alert Level 3 | . 1 1 3 1 1 1 Low Security (%) 69 | 100 90 98 28 25 82 90 Level 1 19 | . 9 1 25 74 17 9 Level 2 8 | . . . 36 . . . Level 3 2 | . . . 9 . . . Level 4 . | . . . . . . . Level 5 . | . . . . . . . High Security . | . . . . . . . Max Security . | . . . . . . . Squads Dispatched 13 | . 2 . 4 . 2 5 Investigation 1 | . . . . . . 1 Extermination 2 | . . . . . . 2 Reinforcement 6 | . 2 . 2 . 2 . Assault 2 | . . . 2 . . . Garrison 2 | . . . . . . 2 Intercept . | . . . . . . . Construction Impeded . | . . . . . . . Haulers Reinforced . | . . . . . . . Active Scanning Responses . | . . . . . . . Cargo Convoy Interrupts 1 | . . . . . . 1 Stealth | -11 -10 -10 -9 -9 -8 -7 --------- Run | Scr Mat Min Mat Min Mat Fac Distress Signals 12 | . 3 . 2 . 6 1 Communications Jammed . | . . . . . . . Distress Signals . | . . . . . . . Times Spotted 161 | . 28 20 50 9 40 14 Peak Tracking Total 5 | . 4 3 5 3 5 5 Tactical Retreats 8 | . 1 5 2 . . . Traps | -11 -10 -10 -9 -9 -8 -7 ------- Run | Scr Mat Min Mat Min Mat Fac Traps Triggered 8 | . 4 . 1 . 2 1 Indirectly . | . . . . . . . Trap Hack Attempts . | . . . . . . . Triggered . | . . . . . . . Disarmed . | . . . . . . . Reprogrammed . | . . . . . . . Reused 1 | . . . . 1 . . Traps Extracted . | . . . . . . . Installed 3 | . . . . 3 . . Triggered 2 | . . . . 1 . 1 Machines | -11 -10 -10 -9 -9 -8 -7 ---------- Run | Scr Mat Min Mat Min Mat Fac Machines Disabled 7 | . . . 6 . . 1 Max in Single Turn 3 | . . . 3 . . 1 Machines Sabotaged . | . . . . . . . Garrisons Compromised 1 | . . . . . . 1 Overloaded Fab Kills . | . . . . . . . Hacking | -11 -10 -10 -9 -9 -8 -7 --------- Run | Scr Mat Min Mat Min Mat Fac Machines Accessed 29 | . 9 1 7 . 8 4 Terminals 22 | . 6 . 7 . 7 2 Fabricators 1 | . . . . . . 1 Repair Stations 3 | . 1 . . . 1 1 Recycling Units 2 | . 2 . . . . . Scanalyzers . | . . . . . . . Garrison Access . | . . . . . . . Total Hacks 71 | . 19 1 22 . 20 9 Successful 33 | . 9 1 9 . 8 6 Failed 35 | . 9 . 12 . 11 3 Catastrophic 3 | . 1 . 2 . . . Database Lockouts 3 | . 1 . 1 . 1 . Manual 43 | . 8 . 17 . 16 2 Terminals 55 | . 11 . 22 . 18 4 Fabricators 3 | . . . . . . 3 Repair Stations 9 | . 5 . . . 2 2 Recycling Units 3 | . 3 . . . . . Scanalyzers . | . . . . . . . Garrison Access . | . . . . . . . Terminal Hacks 16 | . 3 1 7 . 4 1 Part Schematic 1 | . . . . . 1 . Robot Analysis 2 | . 1 . 1 . . . Prototype ID Bank 1 | . . . 1 . . . Open Door 1 | . . 1 . . . . Branch Access Points 1 | . . . 1 . . . Unreport Threat 3 | . . . 1 . 2 . Locate Traps 3 | . 1 . 2 . . . Hauler Manifests 3 | . 1 . 1 . 1 . Registered Components 1 | . . . . . . 1 Fabricator Hacks 2 | . . . . . . 2 Load Schematic 1 | . . . . . . 1 Build 1 | . . . . . . 1 Repair Station Hacks 7 | . 4 . . . 2 1 Scan Component 4 | . 2 . . . 1 1 Repair 3 | . 2 . . . 1 . Recycling Unit Hacks 1 | . 1 . . . . . Retrieve Components 1 | . 1 . . . . . Scanalyzer . | . . . . . . . Garrison Access Hacks . | . . . . . . . Unauthorized Hacks 7 | . 1 . 2 . 2 2 Terminals 7 | . 1 . 2 . 2 2 Botnet 7 | . 1 . 2 . 2 2 Fabricators . | . . . . . . . Repair Stations . | . . . . . . . Recycling Units . | . . . . . . . Scanalyzers . | . . . . . . . Garrison Access . | . . . . . . . Data Cores Recovered 1 | . . . . . 1 . Used 1 | . . . . . 1 . Hacking Detections 26 | . 9 . 6 . 8 3 Full Trace Events 1 | . . . . . . 1 Feedback Events . | . . . . . . . Feedback Blocked . | . . . . . . . Robot Schematics Acquired . | . . . . . . . Robots Built . | . . . . . . . Authchips . | . . . . . . . Time . | . . . . . . . Total Robot Build Rating . | . . . . . . . Part Schematics Acquired 1 | . . . . . 1 . Parts Built 1 | . . . . . . 1 Authchips . | . . . . . . . Time 25 | . . . . . . 25 Total Part Build Rating 1 | . . . . . . 1 Parts Repaired 3 | . 2 . . . 1 . Time 112 | . 52 . . . 60 . Parts Recycled . | . . . . . . . Recycled Matter . | . . . . . . . Retrieved Matter . | . . . . . . . Retrieved Components 7 | . 7 . . . . . Parts Scanalyzed . | . . . . . . . Part Schematics Acquired . | . . . . . . . Parts Damaged . | . . . . . . . Bothacking | -11 -10 -10 -9 -9 -8 -7 ------------ Run | Scr Mat Min Mat Min Mat Fac Used RIF Installer . | . . . . . . . Robots Hacked . | . . . . . . . Non-combat . | . . . . . . . Combat . | . . . . . . . Robot Hacks Applied . | . . . . . . . Relay Couplers Released . | . . . . . . . Fabnet Peak Effective % . | . . . . . . . Robots Rewired . | . . . . . . . Allies Hacked . | . . . . . . . Hacks Repelled . | . . . . . . . Allies | -11 -10 -10 -9 -9 -8 -7 -------- Run | Scr Mat Min Mat Min Mat Fac Total Allies 3 | . . . . 3 . . Largest Group 3 | . . . . 3 3 . Highest-Rated Group 40 | . . . . 40 40 . Highest-Rated Ally 16 | . . . . 16 16 . Total Orders . | . . . . . . . Ally Attacks 28 | . . . . . 28 . Total Damage 366 | . . . . . 366 . Kills 3 | . . . . . 3 . Allies Corrupted . | . . . . . . . Allies Melted . | . . . . . . . Intel | -11 -10 -10 -9 -9 -8 -7 ------- Run | Scr Mat Min Mat Min Mat Fac Robot Analysis Total 2 | . 1 . 1 . . . Derelict Logs Recovered 2 | . . 1 . 1 . . Drone Launches . | . . . . . . . Drone Recoveries . | . . . . . . . Exploration | -11 -10 -10 -9 -9 -8 -7 ------------- Run | Scr Mat Min Mat Min Mat Fac Turns Passed 9519 | 179 1807 1354 2301 913 1797 1168 Spaces Moved 4779 | 92 815 705 1187 542 898 540 Core 5 | 5 . . . . . . Treads 4774 | 87 815 705 1187 542 898 540 Legs . | . . . . . . . Wheels . | . . . . . . . Hover . | . . . . . . . Flight . | . . . . . . . Fastest Speed 50 | 50 160 160 145 153 157 155 Average Speed 159 | 154 160 160 157 154 157 171 Slowest Speed 250 | 160 240 160 170 250 157 245 Overloaded Moves . | . . . . . . . Propulsion Burnouts . | . . . . . . . Robots Hopped . | . . . . . . . Cave-ins Triggered . | . . . . . . . Exploration Rate (%) 64 | 5 96 95 77 87 72 16 Regions Visited 6 Branch Regions 2 Pre-discovered Areas 1 | . . . . 1 . . Known Exits Taken 1 | . . . 1 . . . Unknown Exits Taken 5 | 1 1 1 . 1 1 . Scrap Searched 4 | . . 1 . 3 . . Spaces Dug 14 | . . . 1 . 13 . Terrain Destroyed 23 | . . . 1 . 13 9 Melee 6 | . . . . . 6 . Projectile 2 | . . . 1 . . 1 AOE 15 | . . . . . 7 8 Terrain Rammed . | . . . . . . . Walls Destroyed . | . . . . . . . Machines Disabled . | . . . . . . . Actions | -11 -10 -10 -9 -9 -8 -7 --------- Run | Scr Mat Min Mat Min Mat Fac Total 6035 | 111 1191 823 1463 594 1148 705 Wait 563 | . 264 25 64 15 113 82 Move 4773 | 91 814 704 1186 541 897 540 Hop . | . . . . . . . Pick Up 62 | 5 11 5 22 5 7 7 Fast Attach 21 | 7 5 3 3 . 3 . Attach 17 | . 1 3 6 . 3 4 Detach 1 | . . . 1 . . . Swap 96 | . 11 8 32 4 19 22 Drop 86 | . 10 6 41 7 16 6 Fire 353 | 7 65 60 100 11 70 40 Melee 6 | . . . . . 6 . Ram . | . . . . . . . Kick . | . . . . . . . Crush 54 | 1 10 9 8 8 14 4 Escape Stasis . | . . . . . . . Rewire . | . . . . . . . Trap 3 | . . . . 3 . . Miscellaneous . | . . . . . . . Route ------- -11/Scrapyard -10/Materials (discovered 5 exits: *Mat x3 / *Min x2) -10/Mines (discovered 3 exits: *Mat x2 / [*Exi]) -9/Materials (discovered 5 exits: *Mat x2 / *Min / *Sto x2) -9/Mines (discovered 2 exits: *Mat x2) -8/Materials (discovered 2 exits: *Fac x2) -7/Factory (discovered 1 exit: *Fac) History --------- Turn | Location | Event 30 | -11/Scrapyard | Discovered new exit (range 15) 180 | -11/Scrapyard | Entered Materials 314 | -10/Materials | Build established: Mutant 540 | -10/Materials | Discovered new exit (range 16) 831 | -10/Materials | Central database locked down 891 | -10/Materials | Discovered new exit (range 9) 1150 | -10/Materials | Discovered new exit (range 6) 1331 | -10/Materials | Build established: Scavenger-Mutant 1353 | -10/Materials | Discovered new exit (range 7) 1430 | -10/Materials | Repaired Lgt. Armor Plating 1458 | -10/Materials | Repaired Med. Laser 1617 | -10/Materials | Discovered new exit (range 5) 1755 | -10/Materials | Build established: Mutant 1987 | -10/Materials | Entered Mines 2143 | -10/Mines | Discovered new exit (range 7) 2509 | -10/Mines | Discovered new exit (range 5) 2588 | -10/Mines | Learned Materials terminal intel 2596 | -10/Mines | Found the Drone Emporium 2610 | -10/Mines | Found Prototype Device 2610 | -10/Mines | Identified Splice Drone Bay 2680 | -10/Mines | Build established: Scavenger-Mutant 2780 | -10/Mines | Deemed a non-threat by the Exiles lab entrance 2780 | -10/Mines | Discovered new exit (range 5) 3119 | -10/Mines | Core integrity fell below 50% 3341 | -10/Mines | Entered Materials 3341 | -9/Materials | Evolved 2 slots: Propulsion x1, Weapon x1 3342 | -9/Materials | Loaded intel: 11 terminal locations 3383 | -9/Materials | Central database locked down 3385 | -9/Materials | Identified exit to Mines 3385 | -9/Materials | Identified exit to Storage 4047 | -9/Materials | Discovered new exit (range 12) 4167 | -9/Materials | Build established: Scavenger-Tank 4883 | -9/Materials | Build established: Tank 4941 | -9/Materials | First assault squad dispatched 5180 | -9/Materials | Discovered new exit (range 7) 5642 | -9/Materials | Entered Mines 5649 | -9/Mines | Received a Rocket Launcher from a helpful Derelict 5730 | -9/Mines | Discovered new exit (range 9) 5737 | -9/Mines | Joined a pair of Derelicts in attacking an 0b10 outpost 5875 | -9/Mines | Learned Materials security intel 5876 | -9/Mines | Learned location of Storage (-9) 6060 | -9/Mines | Found a hidden stash of uninstalled traps 6362 | -9/Mines | Discovered new exit (range 13) 6371 | -9/Mines | Assisted by bots powering up and referring to "LRC-V3" 6555 | -9/Mines | Entered Materials 6555 | -8/Materials | Accompanied by 3 allies 6555 | -8/Materials | Evolved 2 slots: Propulsion x1, Utility x1 7018 | -8/Materials | Discovered new exit (range 10) 7303 | -8/Materials | Destroyed 7 combat bots 7809 | -8/Materials | Discovered new exit (range 16) 8010 | -8/Materials | Repaired Enh. Autogun 8137 | -8/Materials | Central database locked down 8352 | -8/Materials | Entered Factory 8352 | -7/Factory | Evolved 2 slots: Propulsion x1, Weapon x1 8624 | -7/Factory | Build established: Mutant 8821 | -7/Factory | Fabricated Huge Storage Unit (x1) 9304 | -7/Factory | Discovered new exit (range 9) 9315 | -7/Factory | Identified exit to Factory 9366 | -7/Factory | Garrison activated, responded to threat 9454 | -7/Factory | Cargo convoy interrupted 9520 | -7/Factory | Self-destructed Last Messages --------------- 09387_ System corrupted: Heat flow error (+247). 09395_ K-01 Serf collects debris. 09402_ Slug penetrates Y-54 Guardian. 09408_ Y-54 Guardian destroyed. 09411_ Acquired 54 matter. 09431_ R-06 Scavenger collects Lgt. Treads. 09432_ Acquired System Shield. 09437_ R-06 Scavenger collects Lgt. Treads. 09446_ ECXTN7PWJRD|0HA0 UK3/5 09450_ Triggered Proton Bomb Trap. 09450_ A bubble of electromagnetic force engulfs the area. 09450_ Door malfunctions. 09454_ ALERT: Cargo convoy interrupted, initiating access lockdown. 09461_ U-05 Engineer repairs door. 09462_ U-05 Engineer lays Concrete. 09465_ System corrupted: Component data lost. 09465_ U-05 Engineer lays Concrete. 09488_ JI=ZQFQU4=BPBP==7EHZBBJPD 09507_ Penetrated by Slug. Map ----- +----------------------------------------------------+ | #????# T#??# # """ #?????????????? | | +##+######## #??# + ! """ #?????????????? | | ##??# # #?????????????? | | ### #???# # #?????????????? | | ??# ##### # ]/! #?????????????? | | ??# #! ] / #?????????????? | | ??#% # //! #?????????????? | | ### "" ##########?????????????? | | """ """ ##?????????????????????? | | ### "F """ #?????????????????????? | | ??# ^ """ """ #?????????????????????? | | ??# "" +?????????????????????? | | ??# ####### """ #?????????????????????? | | ### ## # ^""" #?????????????????????? | | ## # """ #?????????????????????? | | ## # #???????????#?????????? | | = +! # """ """k ########### #?????????? | | ######= ## """ """ #?????????? | | ?????# ## """ """ h ##????????? | | ?????# ## +????????? | | ####?# ## #?????????? | | #?# ## #?????????? | | #?####+##### ####### ######### #?????????? | | ##### ### #????# #??????????????????????? | | #????# #??????????????????????? | | ########! !### #????# @#???????????????????[??? | | ?????## ##???####???# #??????????????????????? | | !????# #???? ???# #??????????????????????? | | ??# #????""" ??# #??????????????????????? | | ## #????""" ??# #??????????????????????? | | | ] ## #???"""" ?# #??????????????????????? | | ## ####"""" ?# #??????????????????????? | | ## #"""" # #??????????????????????? | | ##### #"""" # #??????????????????????? | | #???# #"""" + #?????????????????[????? | | ###"######## # # #??????????????????????? | | # ########## ##?????????????????????? | | # #???????# ##############????????? | | # #???????# ???????? | | # #???????# ???????? | | # #???????# ???????? | | # #???????# ###### #####??????????? | | # #???????### ###?????????????????????? | | # #?#########H#???????????????????????? | | # #### #???????????????????????? | | # #???############ #???????????????????????? | | ### ### #######????????# #???????????????????????? | | ??#!#?# # #????????# #???????????????????????? | | ??# #?# # #????????# #???????????????????????? | | ??#!#?# # < #????????# #???????????????????????? | +----------------------------------------------------+ Best States ------------- Heat Dissipation 56 Energy Generation 14 Energy Capacity 280 Matter Stores 300 Matter Capacity 300 Sight Range 16 Robot Scan Range 15 Terrain Scan Range 16 Terrain Scan Density 10 Armor Coverage 225 Evasion (%) 40 Recoil Reduction 5 Item Schematics ----------------- Huge Storage Unit | -8/Materials | Hacked Robot Schematics ------------------ None Fabricated ------------ Huge Storage Unit | x1 | -7/Factory Alien Tech Used ----------------- None Achievements -------------- None Challenges ------------ None Game ------ Seed VisualLatentFalx Manual? 0 Play Time 00:58:10 Cumulative 340.5 hours Start 2022.02.12 @ 02:32:15 End 2022.02.12 @ 03:51:28 Sessions 3 Manual Loads 0 Difficulty Rogue Special Mode None Game No. 146 Rogue 146 Adventurer 0 Explorer 0 Win Type - Total 6 Types 1/2/1/0/0/2/0/0/0 Lore% 60 Gallery% 62 Achievement% 59 Wizard Run 0 Options --------- ASCII 0 Keyboard 1 Movement Vi Keybinds 0 Fullscreen 2 Font 12/Smallcaps Map View 60x54 Tactical HUD 1 Map Filters NONE Filters NONE Steam 1 RUN: 9b485e92-b9c0-4dcd-9ecf-ae312b94d50d